Cogmind - Beta 10.1 @@@ ROGUE MODE // 2020.10.03 @ 15:16:57 // AFD2020/Player2 Player: cptwinky Result: Core destroyed Performance ------------- Evolutions (7) 3500 Regions Visited (21) 4200 Robots Destroyed (109) 545 Value Destroyed (4909) 4909 Prototype IDs (19) 380 Alien Tech Used (1) 200 Bonus (2984) 2984 TOTAL SCORE: 16718 Bonus ------- High Alert Combat Kills 91 Follower Combat Kills 3357 Entered Garrisons 400 Used RIF Installer 1000 Met Data Miner 300 Friendly Fire -2164 Cogmind --------- Core Integrity 0/1300 Matter 94/300 Energy 234/240 System Corruption 1% Temperature Cool (152) Movement Walking (180) Ox2 Location -3/Research Parts ------- > --- POWER (2) -------- Light Antimatter Reactor Light Antimatter Reactor > --- PROPULSION (3) --- Flexi-carbon Leg Flexi-carbon Leg Enhanced Flexi-carbon Leg > --- UTILITY (13) ----- High-capacity Storage Unit High-capacity Storage Unit Advanced Signal Interpreter Improved Target Analyzer Improved Core Analyzer Hacking Suite Makeshift System Shield Relay Coupler [NC] (16) Relay Coupler [Sentry] (2) Advanced Field Recycling Unit > --- WEAPON (4) ------- Hardcell Cannon Hardcell Cannon Hardcell Cannon Hypervelocity Mass Driver > --- INVENTORY (20) --- Light Antimatter Reactor Wheel Wheel Matter Compressor (0) Experimental Sensor Array Relay Coupler [Swarmer] (38) Relay Coupler [Swarmer] (26) Heavy Tesla Rifle Heavy Tesla Rifle Long-range Proton Cannon Neutron Cannon Heavy Neutron Cannon Heavy Neutron Cannon Hardcell Cannon Heavy Missile Launcher Improved Remote Datajack Heavy Pick Dirty Bomb Trap Dirty Bomb Trap Dirty Bomb Trap Peak State ------------ > --- POWER ------------ Light Antimatter Reactor Light Antimatter Reactor > --- PROPULSION ------- Flexi-carbon Leg Flexi-carbon Leg Enhanced Flexi-carbon Leg > --- UTILITY ---------- High-capacity Storage Unit High-capacity Storage Unit Medium Matter Pod Experimental Sensor Array Advanced Signal Interpreter Improved Target Analyzer Improved Armor Integrity Analyzer Hacking Suite Makeshift System Shield Relay Coupler [NC] Relay Coupler [Sentry] Advanced Field Recycling Unit > --- WEAPON ----------- Hardcell Cannon Hardcell Cannon Hardcell Cannon Hypervelocity Mass Driver > --- INVENTORY -------- Light Antimatter Reactor Wheel Wheel Matter Compressor Relay Coupler [Swarmer] Relay Coupler [Swarmer] Heavy Tesla Rifle Heavy Tesla Rifle Neutron Cannon Heavy Neutron Cannon Heavy Neutron Cannon Hardcell Cannon Hardcell Cannon Hardcell Cannon Heavy Missile Launcher Improved Remote Datajack Chainsword Dirty Bomb Trap Dirty Bomb Trap Dirty Bomb Trap [Rating: 109] Favorites ----------- Power Improved Deuterium Engine Engine Improved Deuterium Engine Power Core Light Fission Core Reactor Light Antimatter Reactor Propulsion Carbon-fiber Leg Leg Carbon-fiber Leg Wheel Armored Huge Wheel Utility High-capacity Storage Unit Device Experimental Sensor Array Storage High-capacity Storage Unit Processor Advanced Signal Interpreter Hackware Makeshift System Shield Protection Improved Medium Armor Plating Weapon Heavy Assault Rifle Energy Gun Shock Rifle Energy Cannon Neutron Cannon Ballistic Gun Heavy Assault Rifle Ballistic Cannon Hardcell Cannon Launcher Heavy Missile Launcher Special Weapon Improved Remote Datajack Slashing Weapon Chainsword Build | -11 -10 -10 -10 -9 -8 -8 -8 -8 -7 -7 -7 -7 -6 -6 -6 -6 -5 -5 -5 -4 -3 ------- Run | Scr Mat Min Exi Min Mat Gar Mat Gar Fac Low Low Dat Pro Fac Low Low Fac Upp Upp Fac Res Slots Evolved 14 | . . . . . 4 . . . 2 . . . . 2 . . 2 . . 2 2 Power 1 | . . . . . . . . . . . . . . . . . 1 . . . . Propulsion 1 | . . . . . 1 . . . . . . . . . . . . . . . . Utility 11 | . . . . . 2 . . . 2 . . . . 2 . . 1 . . 2 2 Weapon 1 | . . . . . 1 . . . . . . . . . . . . . . . . Parts Attached 221 | 6 4 1 1 . 14 8 11 6 25 11 15 . 15 12 5 11 14 11 1 34 16 Power 18 | 1 1 . . . 2 . 2 1 2 . . . . 1 . 1 1 . . 5 1 Engine 12 | 1 1 . . . 2 . 2 1 1 . . . . . . 1 1 . . 2 . Core 3 | . . . . . . . . . 1 . . . . 1 . . . . . 1 . Reactor 3 | . . . . . . . . . . . . . . . . . . . . 2 1 Propulsion 33 | 2 . 1 . . 6 2 2 1 7 1 1 . 1 2 . . . . . 4 3 Treads . | . . . . . . . . . . . . . . . . . . . . . . Leg 31 | 2 . 1 . . 6 2 2 1 7 1 1 . 1 2 . . . . . 2 3 Wheel 2 | . . . . . . . . . . . . . . . . . . . . 2 . Hover . | . . . . . . . . . . . . . . . . . . . . . . Flight . | . . . . . . . . . . . . . . . . . . . . . . Utility 84 | 1 1 . 1 . 5 . 2 2 7 6 7 . 6 9 2 5 7 7 1 9 6 Device 50 | . . . . . 2 . 1 . 3 6 4 . 4 6 2 5 4 6 1 4 2 Storage 6 | 1 . . 1 . 1 . . . . . 1 . . 1 . . . . . . 1 Processor 7 | . 1 . . . . . . . 2 . . . . . . . . . . 3 1 Hackware 6 | . . . . . . . . . . . . . . . . . 2 . . 2 2 Protection 15 | . . . . . 2 . 1 2 2 . 2 . 2 2 . . 1 1 . . . Artifact . | . . . . . . . . . . . . . . . . . . . . . . Weapon 86 | 2 2 . . . 1 6 5 2 9 4 7 . 8 . 3 5 6 4 . 16 6 Energy Gun 22 | . . . . . . . . . 3 1 3 . 4 . 2 3 3 . . 3 . Energy Cannon 12 | . . . . . . 1 1 . . 1 1 . 3 . 1 1 . 2 . . 1 Ballistic Gun 17 | 2 2 . . . 1 4 4 1 3 . . . . . . . . . . . . Ballistic Cannon 12 | . . . . . . . . . . . . . . . . 1 . . . 7 4 Launcher 11 | . . . . . . 1 . 1 3 1 2 . 1 . . . . 1 . 1 . Special Weapon 9 | . . . . . . . . . . 1 . . . . . . 2 1 . 4 1 Impact Weapon . | . . . . . . . . . . . . . . . . . . . . . . Slashing Weapon 3 | . . . . . . . . . . . 1 . . . . . 1 . . 1 . Piercing Weapon . | . . . . . . . . . . . . . . . . . . . . . . Special Melee Weapon . | . . . . . . . . . . . . . . . . . . . . . . Unidentified Prototypes 4 | . . . . . 1 . . . . . . . 1 . . 1 . . . 1 . Parts Lost 30 | . . . . . . . 1 1 2 1 . . 2 . . . 1 . . 20 2 Power 4 | . . . . . . . 1 . . . . . . . . . . . . 3 . Propulsion 3 | . . . . . . . . . . . . . . . . . . . . 3 . Utility 10 | . . . . . . . . 1 . . . . 1 . . . . . . 6 2 Weapon 13 | . . . . . . . . . 2 1 . . 1 . . . 1 . . 8 . Highest Loss Streak 11 | . . . . . . . 1 1 1 1 . . 2 . . . 1 . . 11 2 Average Slot Usage (%) 95 | . 95 100 100 100 97 100 99 100 96 91 92 92 91 95 100 99 98 100 100 79 88 Engine 7 | . 14 14 14 14 9 9 8 9 5 7 7 7 7 3 . 1 9 11 11 5 . Leg 21 | . 28 28 28 28 27 27 27 27 23 23 23 23 23 20 20 18 16 16 16 9 10 Device 7 | . . . . . 7 9 10 11 7 7 6 . 2 13 13 11 10 11 11 7 4 Storage 14 | . 14 14 14 14 17 18 18 18 15 15 15 15 15 13 13 12 11 11 11 10 12 Processor 6 | . 9 14 14 14 5 . . . 7 7 7 7 7 6 6 6 5 5 5 8 14 Hackware 2 | . . . . . . . . . . . . . . . . . 9 8 5 7 16 Protection 8 | . . . . . 3 9 7 6 10 7 7 15 11 15 20 18 13 13 16 7 . Energy Gun 9 | . . . . . . . . . 6 19 17 15 16 13 18 17 18 17 16 6 . Ballistic Gun 10 | . 28 28 28 28 26 26 26 26 15 1 . . . . . . . . . . . Ballistic Cannon 1 | . . . . . . . . . . . . . . . . 1 . . . 7 17 Naked Turns . | . . . . . . . . . . . . . . . . . . . . . . Heaviest Build 149 | 9 15 15 43 43 71 72 72 73 83 87 93 93 93 113 113 120 125 131 131 132 149 Greatest Support 73 | 20 20 20 20 20 39 43 47 47 50 50 50 50 63 68 68 68 68 68 68 73 68 Greatest Overweight (x) 13 | . . . 2 2 2 1 1 1 1 1 1 1 1 1 1 1 1 1 1 4 13 Average Overweight (x) 1 | . . . 1 2 1 1 1 1 1 1 1 1 1 1 1 1 1 1 1 1 2 Largest Inventory Capacity 26 | 6 6 6 12 12 18 18 18 18 18 18 18 18 18 26 20 20 20 20 20 20 20 Average Capacity 17 | 5 6 6 10 12 17 18 18 18 18 18 18 18 18 19 20 20 20 20 20 20 20 Most Carried 20 | 6 6 6 7 7 18 18 18 18 18 18 18 18 18 20 20 20 20 20 20 20 20 Average Carried 16 | 4 3 5 6 7 13 17 17 17 17 17 17 18 18 18 19 19 19 19 20 17 19 Final Capacity 20 | 6 6 6 12 12 18 18 18 18 18 18 18 18 18 20 20 20 20 20 20 20 20 Final Carried 20 | 6 6 6 7 7 18 18 18 17 18 18 18 18 18 20 20 20 20 20 20 20 20 Class Distribution -------------------- 19% | Scavenger-Tank 18% | Scavenger-Mutant 16% | Scavenger-Skirmisher 13% | Bothacker-Tank 10% | Mutant 5% | Tank 3% | Bothacker-Skirmisher 3% | Skirmisher Dominant Class ---------------- Mutant | -10/Materials Mutant | -10/Mines Mutant | -10/Exiles Mutant | -9/Mines Tank | -8/Materials Tank | -8/Garrison Scavenger-Tank | -8/Materials Scavenger-Tank | -8/Garrison Scavenger-Skirmisher | -7/Factory Scavenger-Skirmisher | -7/Lower Caves Scavenger-Mutant | -7/Lower Caves Scavenger-Mutant | -7/Data Miner Scavenger-Mutant | -6/Proximity Caves Bothacker-Tank | -6/Factory Bothacker-Tank | -6/Lower Caves Bothacker-Tank | -6/Lower Caves Bothacker-Tank | -5/Factory Bothacker-Skirmisher | -5/Upper Caves Scavenger-Tank | -5/Upper Caves Scavenger-Tank | -4/Factory Scavenger-Mutant | -3/Research Resources | -11 -10 -10 -10 -9 -8 -8 -8 -8 -7 -7 -7 -7 -6 -6 -6 -6 -5 -5 -5 -4 -3 ----------- Run | Scr Mat Min Exi Min Mat Gar Mat Gar Fac Low Low Dat Pro Fac Low Low Fac Upp Upp Fac Res Matter Collected 4931 | 268 76 19 . . 613 179 485 103 635 99 294 . 212 76 84 102 150 370 . 756 410 Remotely . | . . . . . . . . . . . . . . . . . . . . . . Salvage Created 4589 | 50 109 . . . 604 101 814 158 369 10 215 . 211 41 . 102 426 296 . 710 373 Parts 200 | 3 9 . . . 25 14 36 5 15 . 9 . 8 1 . 9 12 13 . 21 20 Haulers Intercepted 1 | . . . . . 1 . . . . . . . . . . . . . . . . Recyclers Shooed . | . . . . . . . . . . . . . . . . . . . . . . Parts Field Recycled 1 | . . . . . . . . . . . . . . . . . . . . . 1 Retrieved Matter 6 | . . . . . . . . . . . . . . . . . . . . . 6 Parts Self-Destructed 61 | . . . . . . . . . . 4 17 . 15 . 1 9 . 15 . . . Prevented 6 | . . . . . . . . . . 4 . . 2 . . . . . . . . Kills | -11 -10 -10 -10 -9 -8 -8 -8 -8 -7 -7 -7 -7 -6 -6 -6 -6 -5 -5 -5 -4 -3 ------- Run | Scr Mat Min Exi Min Mat Gar Mat Gar Fac Low Low Dat Pro Fac Low Low Fac Upp Upp Fac Res Combat Hostiles Destroyed 92 | . 4 . . . 10 5 17 5 11 1 5 . 6 1 . 2 5 5 . 10 5 Guns 49 | . 4 . . . 10 1 16 . 4 . . . 1 1 . 1 5 3 . 3 . Cannons 11 | . . . . . . 1 . . . . . . . . . 1 . . . 4 5 AOE 29 | . . . . . . 3 . 5 7 1 5 . 4 . . . . 2 . 2 . Classes Destroyed 14 | 1 2 . . . 5 . . 1 1 . . . . . . 1 . . . 1 2 Worker 6 | . . . . . 1 . . . . . . . . . . . 2 . . 2 1 Builder 1 | . . . . . . . . . . . . . . . . . . . . 1 . Tunneler 1 | . . . . . . . . . . . . . . . . . . . . . 1 Hauler 1 | . . . . . 1 . . . . . . . . . . . . . . . . Recycler 4 | 1 . . . . 1 . . . . . . . . . . . 1 . . 1 . Watcher 2 | . . . . . 1 . . . . . . . . . . . . . . . 1 Swarmer 15 | . 2 . . . . 3 . . 4 1 . . 5 . . . . . . . . Grunt 49 | . 2 . . . 5 1 11 4 5 . 4 . 1 . . . 4 3 . 7 2 Brawler 1 | . . . . . . . . 1 . . . . . . . . . . . . . Duelist 2 | . . . . . . . . . 1 . 1 . . . . . . . . . . Sentry 12 | . . . . . 4 . 4 . 1 . . . . 1 . . 1 . . 1 . Hunter 10 | . . . . . 1 1 2 . . . . . . . . 1 . 2 . 1 2 Programmer 2 | . . . . . . . . . . . . . . . . 1 . . . 1 . Behemoth 1 | . . . . . . . . . . . . . . . . . . . . . 1 Enhanced Grunt 1 | . . . . . . . . . . . . . 1 . . . . . . . . Commander 1 | . . . . . . . . . . . 1 . . . . . . . . . . Best Kill Streak 6 | 1 1 . . . 3 4 4 5 4 1 3 . 3 1 . 1 3 3 . 6 4 Combat Bots Only 5 | . 1 . . . 2 4 4 5 4 1 3 . 3 1 . 1 3 3 . 3 2 Max Kills in Single Turn 4 | 1 1 . . . 2 3 1 2 4 1 1 . 3 1 . 1 1 1 . 1 3 Gunslinging 1 | . . . . . 1 . . . . . . . . . . . . . . . . Exploded 4 | . . . . . . 3 . 2 4 1 1 . 3 . . . . 1 . 1 . Melee . | . . . . . . . . . . . . . . . . . . . . . . Uniques/NPCs Destroyed . | . . . . . . . . . . . . . . . . . . . . . . Combat | -11 -10 -10 -10 -9 -8 -8 -8 -8 -7 -7 -7 -7 -6 -6 -6 -6 -5 -5 -5 -4 -3 -------- Run | Scr Mat Min Exi Min Mat Gar Mat Gar Fac Low Low Dat Pro Fac Low Low Fac Upp Upp Fac Res Damage Taken 6999 | . 171 . . . 468 162 761 163 703 195 241 . 222 170 . 301 66 202 . 2447 727 Core 664 | . 39 . . . 39 19 59 . 44 34 24 . 3 13 . . . 46 . 318 26 Absorbed by Shields . | . . . . . . . . . . . . . . . . . . . . . . Core Remaining (%) 81 | 100 . . . 84 . . . 63 . . . . 82 . . 98 . . 88 56 . Volleys Fired 374 | 4 20 . . . 36 19 39 7 28 5 30 . 34 4 1 7 17 13 . 65 45 Largest 4 | 2 2 . . . 3 3 3 3 3 3 3 . 2 3 1 4 4 4 . 4 4 Hottest 320 | 40 46 . . . 69 69 73 71 98 163 155 . 100 240 55 305 305 320 . 320 261 Shots Fired 788 | 8 40 . . . 108 41 107 11 76 12 35 . 45 9 1 16 49 30 . 141 59 Gun 576 | 8 40 . . . 108 36 102 6 72 8 21 . 22 6 1 11 46 24 . 65 . Cannon 167 | . . . . . . 4 5 . . 3 3 . 20 3 . 5 . 2 . 66 56 Launcher 32 | . . . . . . 1 . 5 4 1 11 . 3 . . . . 3 . 4 . Special 13 | . . . . . . . . . . . . . . . . . 3 1 . 6 3 Kinetic 442 | 8 40 . . . 108 36 102 6 50 . . . . . . . . . . 39 53 Thermal 177 | . . . . . . . . . . . 3 . 20 9 . 16 37 26 . 63 3 Explosive 32 | . . . . . . 1 . 5 4 1 11 . 3 . . . . 3 . 4 . Electromagnetic 124 | . . . . . . 4 5 . 22 11 21 . 22 . 1 . 9 . . 29 . Robot Hit Streak 14 | 3 13 . . . 10 13 14 7 8 12 5 . 5 11 . 3 7 8 . 11 7 Robot Miss Streak 7 | 1 3 . . . 7 2 3 1 3 1 2 . 3 . 1 3 2 2 . 6 3 Penetration Max 2 | . . . . . . . . . . . . . . . . . . . . . 2 Secondary Targets 5 | . 1 . . . 1 . 3 . . . . . . . . . . . . . . Max Gunslinging Chain 1 | . 1 . . . 1 . 1 . . . . . . . . . . . . . . Shots Hit Robots 459 | 5 29 . . . 63 27 66 9 40 11 18 . 18 6 . 6 29 15 . 86 31 Core Hits 217 | 2 10 . . . 24 8 31 12 26 5 14 . 10 1 . 3 13 14 . 33 11 Critical Hits 34 | 1 . . . . 2 . . . . . . . 1 . . . . . . 2 28 Critical Kills 7 | . . . . . . . . . . . . . . . . . . . . . 7 Critical Parts Destroyed 18 | 1 . . . . 2 . . . . . . . . . . . . . . 2 13 Melee Attacks 18 | . . . . . . . . . . . 8 . . . . . 1 . . 9 . Impact . | . . . . . . . . . . . . . . . . . . . . . . Slashing 18 | . . . . . . . . . . . 8 . . . . . 1 . . 9 . Piercing . | . . . . . . . . . . . . . . . . . . . . . . Sneak Attacks . | . . . . . . . . . . . . . . . . . . . . . . Combat Hostiles . | . . . . . . . . . . . . . . . . . . . . . . Follow-up Attacks . | . . . . . . . . . . . . . . . . . . . . . . Damage Inflicted 12698 | 37 260 . . . 935 593 1081 577 1099 284 695 . 1296 171 . 197 715 608 . 3161 989 Guns 5938 | 37 260 . . . 935 395 957 99 630 88 206 . 252 125 . 111 621 264 . 958 . Cannons 2739 | . . . . . . 51 117 . . 46 . . . 46 . 86 . . . 1404 989 Explosions 3910 | . . . . . . 147 . 478 469 150 489 . 1044 . . . 94 344 . 695 . Melee 104 | . . . . . . . . . . . . . . . . . . . . 104 . Ramming 7 | . . . . . . . 7 . . . . . . . . . . . . . . Kinetic 4872 | 37 260 . . . 935 395 957 99 374 . . . . . . . . . . 826 989 Thermal 2918 | . . . . . . . . . . . 90 . 294 171 . 197 631 264 . 1271 . Explosive 3432 | . . . . . . 147 . 478 469 150 399 . 750 . . . . 344 . 695 . Electromagnetic 1365 | . . . . . . 51 117 . 256 134 206 . 252 . . . 84 . . 265 . Impact . | . . . . . . . . . . . . . . . . . . . . . . Slashing 104 | . . . . . . . . . . . . . . . . . . . . 104 . Piercing . | . . . . . . . . . . . . . . . . . . . . . . Highest Corruption 1 | . . . . . . . . . . . . . . . . . . . . 1 1 Average Corruption 1 | . . . . . . . . . . . . . . . . . . . . 1 1 Corruption Purged . | . . . . . . . . . . . . . . . . . . . . . . Effects 1 | . . . . . . . . . . . . . . . . . . . . 1 . Message Errors 1 | . . . . . . . . . . . . . . . . . . . . 1 . Overload Shots . | . . . . . . . . . . . . . . . . . . . . . . Overflow Damage 149 | . . . . . . . . . . . . . 84 . . . . . . 65 . Projectiles 52 | . . . . . . . . . . . . . . . . . . . . 52 . Explosions 97 | . . . . . . . . . . . . . 84 . . . . . . 13 . Melee . | . . . . . . . . . . . . . . . . . . . . . . Knockbacks 10 | . . . . . . . 1 . . . . . . . . . . . . 5 4 Impact 1 | . . . . . . . 1 . . . . . . . . . . . . . . Kinetic 9 | . . . . . . . . . . . . . . . . . . . . 5 4 Secondary . | . . . . . . . . . . . . . . . . . . . . . . Self-Inflicted Damage 292 | . . . . . . . 3 31 29 . 151 . 78 . . . . . . . . Shots 7 | . . . . . . . . 1 1 . 3 . 2 . . . . . . . . Rammed 1 | . . . . . . . 1 . . . . . . . . . . . . . . Targets Rammed 1 | . . . . . . . 1 . . . . . . . . . . . . . . Kicked . | . . . . . . . . . . . . . . . . . . . . . . Crushed . | . . . . . . . . . . . . . . . . . . . . . . Highest Temperature 414 | . 18 . . . 9 . 4 . 111 110 92 . 246 149 . 141 348 174 . 342 414 Average Temperature 84 | . 8 . . . 6 . 4 . 38 72 38 . 83 60 . 62 102 84 . 93 125 Received Heat Transfer 1143 | . 81 . . . 144 36 261 72 72 24 33 . 36 24 . 12 27 27 . 267 27 Effects 6 | . . . . . . . . . . . . . 2 . . . . . . . 4 Energy Bleed 2 | . . . . . . . . . . . . . . . . . . . . . 2 Interference 2 | . . . . . . . . . . . . . 2 . . . . . . . . Matter Decay 2 | . . . . . . . . . . . . . . . . . . . . . 2 Siege Activations . | . . . . . . . . . . . . . . . . . . . . . . Robots Corrupted 4 | . . . . . . . 1 . . . 1 . 2 . . . . . . . . Combat Hostiles 2 | . . . . . . . 1 . . . . . 1 . . . . . . . . Parts Fried 7 | . . . . . . . 2 . . . 3 . 2 . . . . . . . . Impact Corruptions . | . . . . . . . . . . . . . . . . . . . . . . Robots Melted 1 | . . . . . . . . . . . . . . . . . . . . 1 . Combat Hostiles 1 | . . . . . . . . . . . . . . . . . . . . 1 . Parts Melted 4 | . . . . . . . . . . . . . . . . . . . . 4 . Heat Transferred 3275 | . . . . . . . . . . . 100 . 262 210 . 170 839 370 . 1324 . Parts Sabotaged . | . . . . . . . . . . . . . . . . . . . . . . Parts Stolen . | . . . . . . . . . . . . . . . . . . . . . . Parts Stripped . | . . . . . . . . . . . . . . . . . . . . . . Power Chain Reactions 5 | . . . . . . . . . . . 2 . 2 . . . 1 . . . . Missiles Intercepted . | . . . . . . . . . . . . . . . . . . . . . . Alert | -11 -10 -10 -10 -9 -8 -8 -8 -8 -7 -7 -7 -7 -6 -6 -6 -6 -5 -5 -5 -4 -3 ------- Run | Scr Mat Min Exi Min Mat Gar Mat Gar Fac Low Low Dat Pro Fac Low Low Fac Upp Upp Fac Res Peak Influence 588 | 5 281 65 . 6 239 525 588 541 439 . . . . 109 . . 326 . . 434 207 Initial 382 | . 3 65 . . 1 106 255 382 283 . . . . 81 . . 46 . . . 63 Average 207 | 2 131 65 . . 128 340 248 483 314 . . . . 61 . . 200 . . 215 123 Maximum Alert Level 2 | . 1 . . . 1 2 2 2 2 . . . . . . . 1 . . 2 1 Low Security (%) 48 | 100 81 100 . 100 90 14 29 . 8 . . . . 100 . . 45 . . 33 73 Level 1 44 | . 18 . . . 9 38 59 30 86 . . . . . . . 54 . . 60 26 Level 2 6 | . . . . . . 47 10 69 4 . . . . . . . . . . 6 . Level 3 . | . . . . . . . . . . . . . . . . . . . . . . Level 4 . | . . . . . . . . . . . . . . . . . . . . . . Level 5 . | . . . . . . . . . . . . . . . . . . . . . . High Security . | . . . . . . . . . . . . . . . . . . . . . . Max Security . | . . . . . . . . . . . . . . . . . . . . . . Squads Dispatched 34 | . 4 . . . 1 . 7 . 5 . . . . 2 . . 3 . . 7 5 Investigation 6 | . 2 . . . . . 1 . . . . . . 1 . . 2 . . . . Extermination 6 | . . . . . . . . . 3 . . . . 1 . . . . . 2 . Reinforcement 16 | . 2 . . . 1 . 3 . 2 . . . . . . . 1 . . 3 4 Assault 1 | . . . . . . . . . . . . . . . . . . . . 1 . Garrison 5 | . . . . . . . 3 . . . . . . . . . . . . 1 1 Intercept . | . . . . . . . . . . . . . . . . . . . . . . Construction Impeded 4 | . . . . . . . . . 1 . . . . . . . . . . 2 1 Haulers Reinforced 2 | . . . . . . . . . . . . . . . . . 1 . . 1 . Stealth | -11 -10 -10 -10 -9 -8 -8 -8 -8 -7 -7 -7 -7 -6 -6 -6 -6 -5 -5 -5 -4 -3 --------- Run | Scr Mat Min Exi Min Mat Gar Mat Gar Fac Low Low Dat Pro Fac Low Low Fac Upp Upp Fac Res Distress Signals 16 | . 2 . . . 6 . . . . . . . . . . . 1 . . 4 3 Communications Jammed 42 | . . . . . . . 42 . . . . . . . . . . . . . . Distress Signals 42 | . . . . . . . 42 . . . . . . . . . . . . . . Times Spotted 199 | . 14 . . . 26 10 30 7 21 4 6 . 9 2 . 3 13 7 . 26 21 Peak Tracking Total 9 | . 5 . . . 4 8 4 5 5 2 2 . 4 1 . 2 6 4 . 4 9 Tactical Retreats 6 | . 1 . . . . 1 1 . 1 . . . 1 . . . . . . 1 . Traps | -11 -10 -10 -10 -9 -8 -8 -8 -8 -7 -7 -7 -7 -6 -6 -6 -6 -5 -5 -5 -4 -3 ------- Run | Scr Mat Min Exi Min Mat Gar Mat Gar Fac Low Low Dat Pro Fac Low Low Fac Upp Upp Fac Res Traps Triggered 9 | . 1 . . . . 3 . 3 2 . . . . . . . . . . . . Indirectly . | . . . . . . . . . . . . . . . . . . . . . . Trap Hack Attempts . | . . . . . . . . . . . . . . . . . . . . . . Triggered . | . . . . . . . . . . . . . . . . . . . . . . Disarmed . | . . . . . . . . . . . . . . . . . . . . . . Reprogrammed . | . . . . . . . . . . . . . . . . . . . . . . Reused . | . . . . . . . . . . . . . . . . . . . . . . Traps Extracted . | . . . . . . . . . . . . . . . . . . . . . . Installed . | . . . . . . . . . . . . . . . . . . . . . . Triggered 1 | . . . . . . . . . . . . . 1 . . . . . . . . Machines | -11 -10 -10 -10 -9 -8 -8 -8 -8 -7 -7 -7 -7 -6 -6 -6 -6 -5 -5 -5 -4 -3 ---------- Run | Scr Mat Min Exi Min Mat Gar Mat Gar Fac Low Low Dat Pro Fac Low Low Fac Upp Upp Fac Res Machines Disabled 19 | . . . . . 1 1 3 . 2 . 1 . . . . . 6 . . 4 1 Max in Single Turn 1 | . . . . . . . . . . . 1 . . . . . 1 . . . . Garrison Access 3 | . . . . . . . . . . . . . . 1 . . . . . 1 1 Garrison Relay 1 | . . . . . . 1 . . . . . . . . . . . . . . . Machines Sabotaged . | . . . . . . . . . . . . . . . . . . . . . . Garrisons Compromised . | . . . . . . . . . . . . . . . . . . . . . . Overloaded Fab Kills . | . . . . . . . . . . . . . . . . . . . . . . Fab Network Shutdowns . | . . . . . . . . . . . . . . . . . . . . . . Hacking | -11 -10 -10 -10 -9 -8 -8 -8 -8 -7 -7 -7 -7 -6 -6 -6 -6 -5 -5 -5 -4 -3 --------- Run | Scr Mat Min Exi Min Mat Gar Mat Gar Fac Low Low Dat Pro Fac Low Low Fac Upp Upp Fac Res Machines Accessed 50 | . 3 . 1 1 6 . 7 . 9 . 3 4 . 4 1 . 5 1 . 3 2 Terminals 20 | . 2 . . 1 3 . 3 . 5 . . . . 2 . . 1 1 . 1 1 Fabricators 2 | . . . . . . . . . 1 . . . . . . . 1 . . . . Repair Stations 3 | . . . . . . . 1 . . . . . . . . . 2 . . . . Recycling Units 9 | . 1 . . . 1 . 1 . 3 . . . . 1 . . . . . 2 . Scanalyzers 3 | . . . . . 1 . 1 . . . . . . . . . 1 . . . . Garrison Access 4 | . . . . . 1 . 1 . . . . . . 1 . . . . . . 1 Total Hacks 148 | . 7 . 1 5 15 . 28 . 18 . 7 28 . 8 1 . 15 4 . 7 4 Successful 87 | . 3 . 1 2 9 . 15 . 5 . 7 28 . 4 1 . 6 2 . 3 1 Failed 61 | . 4 . . 3 6 . 13 . 13 . . . . 4 . . 9 2 . 4 3 Catastrophic 14 | . 1 . . 2 1 . 1 . 4 . . . . 2 . . 1 . . 2 . Database Lockouts . | . . . . . . . . . . . . . . . . . . . . . . Manual 57 | . 3 . . 5 8 . 17 . 8 . . . . 4 . . 2 4 . 3 3 Terminals 55 | . 3 . . 5 6 . 15 . 10 . . . . 4 . . 2 4 . 3 3 Fabricators 4 | . . . . . . . . . 1 . . . . . . . 3 . . . . Repair Stations 8 | . . . . . . . 2 . . . . . . . . . 6 . . . . Recycling Units 24 | . 4 . . . 3 . 4 . 7 . . . . 2 . . . . . 4 . Scanalyzers 12 | . . . . . 4 . 4 . . . . . . . . . 4 . . . . Garrison Access 8 | . . . . . 2 . 3 . . . . . . 2 . . . . . . 1 Terminal Hacks 49 | . 1 . 1 2 2 . 5 . 1 . 7 28 . . 1 . . 1 . . . Record 17 | . . . 1 . . . . . . . 5 11 . . . . . . . . . Part Schematic 7 | . . . . . . . . . . . . 7 . . . . . . . . . Robot Schematic 7 | . . . . . . . . . . . . 7 . . . . . . . . . Robot Analysis 5 | . 1 . . 2 . . 1 . . . . . . . . . . 1 . . . Prototype ID Bank 4 | . . . . . . . 1 . . . . 3 . . . . . . . . . Open Door 3 | . . . . . . . . . . . 2 . . . 1 . . . . . . Branch Access Points 1 | . . . . . . . . . 1 . . . . . . . . . . . . Unreport Threat 3 | . . . . . 1 . 2 . . . . . . . . . . . . . . Locate Traps 1 | . . . . . 1 . . . . . . . . . . . . . . . . Zone Layout 1 | . . . . . . . 1 . . . . . . . . . . . . . . Fabricator Hacks . | . . . . . . . . . . . . . . . . . . . . . . Repair Station Hacks 4 | . . . . . . . 2 . . . . . . . . . 2 . . . . Scan Component 2 | . . . . . . . 1 . . . . . . . . . 1 . . . . Repair 2 | . . . . . . . 1 . . . . . . . . . 1 . . . . Recycling Unit Hacks 8 | . 1 . . . 1 . 1 . 2 . . . . 1 . . . . . 2 . Retrieve Components 8 | . 1 . . . 1 . 1 . 2 . . . . 1 . . . . . 2 . Scanalyzer 10 | . . . . . 3 . 4 . . . . . . . . . 3 . . . . Insert Component 4 | . . . . . 1 . 2 . . . . . . . . . 1 . . . . Analyze 6 | . . . . . 2 . 2 . . . . . . . . . 2 . . . . Garrison Access Hacks 5 | . . . . . 1 . 1 . . . . . . 2 . . . . . . 1 Unlock Access 2 | . . . . . 1 . 1 . . . . . . . . . . . . . . Seal Access 2 | . . . . . . . . . . . . . . 1 . . . . . . 1 Coupler Status 1 | . . . . . . . . . . . . . . 1 . . . . . . . Unauthorized Hacks 11 | . 1 . . . 2 . 2 . 2 . . . . 1 . . 1 1 . 1 . Terminals 6 | . . . . . 1 . 1 . . . . . . 1 . . 1 1 . 1 . Track 1 | . . . . . . . . . . . . . . . . . . 1 . . . Botnet 5 | . . . . . 1 . 1 . . . . . . 1 . . 1 . . 1 . Fabricators . | . . . . . . . . . . . . . . . . . . . . . . Repair Stations . | . . . . . . . . . . . . . . . . . . . . . . Recycling Units 5 | . 1 . . . 1 . 1 . 2 . . . . . . . . . . . . Mask 4 | . . . . . 1 . 1 . 2 . . . . . . . . . . . . Tunnel 1 | . 1 . . . . . . . . . . . . . . . . . . . . Scanalyzers . | . . . . . . . . . . . . . . . . . . . . . . Garrison Access . | . . . . . . . . . . . . . . . . . . . . . . Data Cores Recovered . | . . . . . . . . . . . . . . . . . . . . . . Used . | . . . . . . . . . . . . . . . . . . . . . . Hacking Detections 36 | . 2 . . 1 5 . 6 . 8 . . . . 4 . . 5 1 . 3 1 Full Trace Events 3 | . . . . . . . . . . . . . . 1 . . 2 . . . . Feedback Events . | . . . . . . . . . . . . . . . . . . . . . . Feedback Blocked . | . . . . . . . . . . . . . . . . . . . . . . Robot Schematics Acquired 7 | . . . . . . . . . . . . 7 . . . . . . . . . Robots Built . | . . . . . . . . . . . . . . . . . . . . . . Matter . | . . . . . . . . . . . . . . . . . . . . . . Time . | . . . . . . . . . . . . . . . . . . . . . . Total Robot Build Rating . | . . . . . . . . . . . . . . . . . . . . . . Part Schematics Acquired 11 | . . . . . 1 . 2 . . . . 7 . . . . 1 . . . . Parts Built . | . . . . . . . . . . . . . . . . . . . . . . Matter . | . . . . . . . . . . . . . . . . . . . . . . Time . | . . . . . . . . . . . . . . . . . . . . . . Total Part Build Rating . | . . . . . . . . . . . . . . . . . . . . . . Parts Repaired 2 | . . . . . . . 1 . . . . . . . . . 1 . . . . Time 99 | . . . . . . . 80 . . . . . . . . . 19 . . . . Parts Recycled . | . . . . . . . . . . . . . . . . . . . . . . Recycled Matter . | . . . . . . . . . . . . . . . . . . . . . . Retrieved Matter . | . . . . . . . . . . . . . . . . . . . . . . Retrieved Components 54 | . 9 . . . 10 . 10 . 10 . . . . 3 . . . . . 12 . Parts Scanalyzed 4 | . . . . . 1 . 2 . . . . . . . . . 1 . . . . Part Schematics Acquired 4 | . . . . . 1 . 2 . . . . . . . . . 1 . . . . Parts Damaged . | . . . . . . . . . . . . . . . . . . . . . . Bothacking | -11 -10 -10 -10 -9 -8 -8 -8 -8 -7 -7 -7 -7 -6 -6 -6 -6 -5 -5 -5 -4 -3 ------------ Run | Scr Mat Min Exi Min Mat Gar Mat Gar Fac Low Low Dat Pro Fac Low Low Fac Upp Upp Fac Res Used RIF Installer 2 | . . . . . . 1 . 1 . . . . . . . . . . . . . Threat Obfuscator 1 | . . . . . . . . 1 . . . . . . . . . . . . . Robots Hacked 10 | . . . . . . . . . . . . . . . . . 3 1 . 4 2 Non-combat 7 | . . . . . . . . . . . . . . . . . 3 1 . 2 1 Combat 3 | . . . . . . . . . . . . . . . . . . . . 2 1 Robot Hacks Applied 10 | . . . . . . . . . . . . . . . . . 3 1 . 4 2 drop_inventory 2 | . . . . . . . . . . . . . . . . . 1 . . 1 . deconstruct_bot 1 | . . . . . . . . . . . . . . . . . . . . 1 . scatter_targeting 1 | . . . . . . . . . . . . . . . . . . . . 1 . streamctrl_high 1 | . . . . . . . . . . . . . . . . . . . . 1 . formatsys_low 4 | . . . . . . . . . . . . . . . . . 2 1 . . 1 formatsys_high 1 | . . . . . . . . . . . . . . . . . . . . . 1 Relay Couplers Released 8 | . . . . . . 3 . . . . . . . 3 . . . . . 1 1 Machine Destruction 8 | . . . . . . 3 . . . . . . . 3 . . . . . 1 1 Attached 4 | . . . . . . . . . . . . . . . . . 1 . . 2 1 Robots Rewired . | . . . . . . . . . . . . . . . . . . . . . . Allies Hacked 1 | . . . . . . . . . . . . . . . . . . . . . 1 Hacks Repelled . | . . . . . . . . . . . . . . . . . . . . . . Allies | -11 -10 -10 -10 -9 -8 -8 -8 -8 -7 -7 -7 -7 -6 -6 -6 -6 -5 -5 -5 -4 -3 -------- Run | Scr Mat Min Exi Min Mat Gar Mat Gar Fac Low Low Dat Pro Fac Low Low Fac Upp Upp Fac Res Total Allies 8 | . 1 . . . . . . . . . . . 1 . . . 2 1 . 1 2 Largest Group 3 | . 1 1 1 1 1 1 1 1 1 1 1 1 2 1 1 1 2 3 3 3 3 Highest-Rated Group 272 | . 57 57 57 57 76 76 79 75 93 97 97 97 191 108 108 109 139 162 162 174 272 Highest-Rated Ally 164 | . 57 57 57 57 76 76 79 75 93 97 97 97 97 108 108 109 119 119 119 131 164 Total Orders 8 | . . . . . . . . . . . . . . . . . 3 3 . 2 . STAY 2 | . . . . . . . . . . . . . . . . . . 1 . 1 . FOLLOW 2 | . . . . . . . . . . . . . . . . . . 1 . 1 . AID 4 | . . . . . . . . . . . . . . . . . 3 1 . . . Ally Attacks 363 | . 27 . . . 68 16 38 5 37 7 9 . 10 2 . 5 27 6 . 70 36 Total Damage 13867 | . 365 . . . 1288 367 1405 146 1337 381 369 . 394 183 78 173 1298 342 . 3995 1746 Kills 120 | . 8 . . . 15 4 11 2 17 3 2 . 6 1 1 1 13 2 . 23 11 Allies Corrupted 2 | . . . . . . . . . . . . . 1 . . . . . . . 1 Allies Melted . | . . . . . . . . . . . . . . . . . . . . . . Intel | -11 -10 -10 -10 -9 -8 -8 -8 -8 -7 -7 -7 -7 -6 -6 -6 -6 -5 -5 -5 -4 -3 ------- Run | Scr Mat Min Exi Min Mat Gar Mat Gar Fac Low Low Dat Pro Fac Low Low Fac Upp Upp Fac Res Robot Analysis Total 5 | . 1 . . 2 . . 1 . . . . . . . . . . 1 . . . Derelict Logs Recovered 4 | . . . . . . . . . . 1 . . . . 2 . . 1 . . . Drone Launches . | . . . . . . . . . . . . . . . . . . . . . . Drone Recoveries . | . . . . . . . . . . . . . . . . . . . . . . Exploration | -11 -10 -10 -10 -9 -8 -8 -8 -8 -7 -7 -7 -7 -6 -6 -6 -6 -5 -5 -5 -4 -3 ------------- Run | Scr Mat Min Exi Min Mat Gar Mat Gar Fac Low Low Dat Pro Fac Low Low Fac Upp Upp Fac Res Turns Passed 15211 | 120 490 317 323 157 1334 510 1085 216 2237 710 1311 146 782 774 759 314 806 1127 49 999 645 Spaces Moved 8123 | 72 313 244 202 88 590 279 472 105 1230 419 715 93 437 463 448 176 385 679 29 376 308 Core 3 | 3 . . . . . . . . . . . . . . . . . . . . . Treads . | . . . . . . . . . . . . . . . . . . . . . . Legs 7897 | 69 313 244 202 88 590 279 472 105 1230 419 715 93 437 463 448 176 385 679 29 228 233 Wheels 223 | . . . . . . . . . . . . . . . . . . . . 148 75 Hover . | . . . . . . . . . . . . . . . . . . . . . . Flight . | . . . . . . . . . . . . . . . . . . . . . . Fastest Speed 50 | 50 120 120 120 180 150 150 150 153 150 153 153 153 153 150 150 150 150 150 150 120 120 Average Speed 149 | 117 120 120 157 180 161 150 152 153 150 153 153 153 153 151 150 150 150 150 150 142 158 Slowest Speed 210 | 120 120 120 180 180 180 150 153 153 153 153 153 153 153 153 150 150 150 150 150 150 210 Overloaded Moves . | . . . . . . . . . . . . . . . . . . . . . . Propulsion Burnouts . | . . . . . . . . . . . . . . . . . . . . . . Robots Hopped . | . . . . . . . . . . . . . . . . . . . . . . Cave-ins Triggered . | . . . . . . . . . . . . . . . . . . . . . . Exploration Rate (%) 41 | 4 57 44 56 19 56 56 42 38 31 59 73 73 74 18 73 21 8 82 6 8 13 Regions Visited 21 Branch Regions 11 Pre-discovered Areas 5 | . 1 . 1 . . . . . . . 1 1 . . . . . 1 . . . Known Exits Taken 14 | . . . . . 1 . 1 . 1 1 1 1 1 1 1 1 1 1 1 1 . Unknown Exits Taken 5 | 1 1 1 1 1 . . . . . . . . . . . . . . . . . Scrap Searched 9 | . . 1 . . . . . . . 2 1 . 1 . 2 1 . 1 . . . Spaces Dug 124 | . . . . . . . . . 9 . 42 . 43 . . 1 1 24 . 2 2 Terrain Destroyed 339 | . . . . . . . . 19 31 11 109 . 74 . . 2 3 39 . 47 4 Melee 5 | . . . . . . . . . . . 3 . . . . . 1 . . 1 . Projectile 43 | . . . . . . . . . . . 1 . 10 . . 2 1 3 . 22 4 AOE 291 | . . . . . . . . 19 31 11 105 . 64 . . . 1 36 . 24 . Terrain Rammed . | . . . . . . . . . . . . . . . . . . . . . . Walls Destroyed . | . . . . . . . . . . . . . . . . . . . . . . Machines Disabled . | . . . . . . . . . . . . . . . . . . . . . . Actions | -11 -10 -10 -10 -9 -8 -8 -8 -8 -7 -7 -7 -7 -6 -6 -6 -6 -5 -5 -5 -4 -3 --------- Run | Scr Mat Min Exi Min Mat Gar Mat Gar Fac Low Low Dat Pro Fac Low Low Fac Upp Upp Fac Res Total 10482 | 99 400 268 208 87 892 338 765 150 1563 474 882 97 498 525 533 210 575 761 34 708 415 Wait 1506 | 10 45 22 4 . 218 8 228 15 237 36 101 5 12 33 76 10 154 54 5 203 30 Move 8104 | 71 312 243 201 87 590 278 472 104 1229 418 714 92 436 462 447 175 384 678 28 375 308 Hop . | . . . . . . . . . . . . . . . . . . . . . . Pick Up 101 | 7 8 1 1 . 19 4 4 1 14 2 7 . . 7 2 1 3 2 . 12 6 Fast Attach 54 | 6 1 . . . 6 . 5 . 6 . . . 2 5 . 4 2 . . 12 5 Attach 35 | . . . . . 3 . . 1 4 1 . . . 4 . 1 2 1 . 15 3 Detach 16 | . . . . . 3 . . . . . . . . 1 . 2 . 1 . 7 2 Swap 133 | . 3 1 1 . 5 8 6 5 15 10 15 . 13 3 5 7 10 10 1 7 8 Drop 97 | 1 11 1 1 . 12 6 10 2 20 2 7 . 1 6 2 3 1 1 . 3 7 Fire 374 | 4 20 . . . 36 19 39 7 28 5 30 . 34 4 1 7 17 13 . 65 45 Melee 18 | . . . . . . . . . . . 8 . . . . . 1 . . 9 . Ram . | . . . . . . . . . . . . . . . . . . . . . . Kick 1 | . . . . . . . 1 . . . . . . . . . . . . . . Crush . | . . . . . . . . . . . . . . . . . . . . . . Escape Stasis 40 | . . . . . . 15 . 15 10 . . . . . . . . . . . . Rewire 3 | . . . . . . . . . . . . . . . . . 1 1 . . 1 Trap . | . . . . . . . . . . . . . . . . . . . . . . Miscellaneous . | . . . . . . . . . . . . . . . . . . . . . . Route ------- -11/Scrapyard -10/Materials (discovered 3 exits: [*Mat] / [*Min x2]) -10/Mines -10/Exiles (discovered 2 exits: *Min x2) -9/Mines -8/Materials (discovered 2 exits: *Fac / Gar) -8/Garrison (discovered 2 exits: *Mat x2) -8/Materials (discovered 2 exits: *Fac / Gar) -8/Garrison -7/Factory (discovered 5 exits: *Fac / *Sto x2 / *Low x2) -7/Lower Caves -7/Lower Caves (discovered 2 exits: *Fac / *Dat) -7/Data Miner -6/Proximity Caves -6/Factory -6/Lower Caves -6/Lower Caves -5/Factory (discovered 4 exits: Fac / *Upp / Ext x2) -5/Upper Caves -5/Upper Caves -4/Factory -3/Research History --------- Turn | Location | Event 4 | -11/Scrapyard | Discovered new exit (range 15) 121 | -11/Scrapyard | Entered Materials 300 | -10/Materials | Discovered new exit (range 8) 310 | -10/Materials | Build established: Mutant 336 | -10/Materials | Discovered new exit (range 14) 593 | -10/Materials | Discovered new exit (range 13) 611 | -10/Materials | Entered Mines 611 | -10/Mines | Accompanied by 1 ally 622 | -10/Mines | Found a damaged Exp. Sensor Array with a note attached 627 | -10/Mines | Found Prototype Device 796 | -10/Mines | Deemed a non-threat by the Exiles lab entrance 797 | -10/Mines | Discovered new exit (range 5) 928 | -10/Mines | Entered Exiles 928 | -10/Exiles | Accompanied by 1 ally 944 | -10/Exiles | Discovered new exit (range 16) 957 | -10/Exiles | Met 8R-AWN 978 | -10/Exiles | Met EX-HEX 1048 | -10/Exiles | Met EX-DEC 1082 | -10/Exiles | Learned location of Zion (-6) 1212 | -10/Exiles | Discovered new exit (range 11) 1251 | -10/Exiles | Entered Mines 1251 | -9/Mines | Accompanied by 1 ally 1390 | -9/Mines | Discovered new exit (range 6) 1408 | -9/Mines | Entered Materials 1408 | -8/Materials | Accompanied by 1 ally 1408 | -8/Materials | Evolved 4 slots: Propulsion x1, Utility x2, Weapon x1 1409 | -8/Materials | Identified Exp. Sensor Array 1995 | -8/Materials | Build established: Scavenger-Skirmisher 2175 | -8/Materials | Discovered new exit (range 18) 2574 | -8/Materials | Build established: Tank 2742 | -8/Materials | Identified exit to Garrison 2742 | -8/Materials | Entered Garrison 2742 | -8/Garrison | Accompanied by 1 ally 2811 | -8/Garrison | Triggered checkpoint 2895 | -8/Garrison | Discovered new exit (range 14) 3012 | -8/Garrison | Triggered checkpoint 3075 | -8/Garrison | Discovered new exit (range 10) 3097 | -8/Garrison | Installed Relay Interface Framework 3148 | -8/Garrison | Triggered checkpoint 3183 | -8/Garrison | Garrison Relay disabled 3252 | -8/Garrison | Entered Materials 3252 | -8/Materials | Accompanied by 1 ally 3343 | -8/Materials | Repaired Exp. Sensor Array 3497 | -8/Materials | Build established: Scavenger-Tank 3677 | -8/Materials | Discovered new exit (range 13) 4095 | -8/Materials | Garrison activated, responded to threat 4321 | -8/Materials | Identified exit to Garrison 4337 | -8/Materials | Entered Garrison 4337 | -8/Garrison | Accompanied by 1 ally 4345 | -8/Garrison | Expanded RIF knowledge: Threat Obfuscation 4370 | -8/Garrison | Build established: Scavenger-Gunner 4403 | -8/Garrison | Triggered checkpoint 4533 | -8/Garrison | Discovered new exit (range 9) 4553 | -8/Garrison | Entered Factory 4553 | -7/Factory | Accompanied by 1 ally 4553 | -7/Factory | Evolved 2 slots: Utility x2 5124 | -7/Factory | Build established: Scavenger-Tank 5143 | -7/Factory | Discovered new exit (range 10) 5174 | -7/Factory | Identified exit to Factory 5829 | -7/Factory | Discovered new exit (range 14) 5854 | -7/Factory | Identified exit to Storage 6043 | -7/Factory | Build established: Scavenger-Skirmisher 6311 | -7/Factory | Identified exit to Lower Caves 6790 | -7/Factory | Entered Lower Caves 6790 | -7/Lower Caves | Accompanied by 1 ally 6953 | -7/Lower Caves | Spotted B-75 Beast 6975 | -7/Lower Caves | Allies destroyed B-75 Beast 7429 | -7/Lower Caves | Discovered new exit (range 12) 7478 | -7/Lower Caves | Identified exit to Lower Caves 7500 | -7/Lower Caves | Entered another Lower Caves area 7500 | -7/Lower Caves | Accompanied by 1 ally 7502 | -7/Lower Caves | Attracted the attention of an 0b10 checkpoint 7575 | -7/Lower Caves | Discovered exit to Factory (range 13) 7831 | -7/Lower Caves | Learned 8 Factory zone layouts 7831 | -7/Lower Caves | Learned Factory trap positions 7887 | -7/Lower Caves | Destroyed QJ-D22(g) 8164 | -7/Lower Caves | Build established: Scavenger-Mutant 8548 | -7/Lower Caves | Discovered new exit (range 15) 8807 | -7/Lower Caves | Identified exit to Data Miner 8811 | -7/Lower Caves | Entered Data Miner 8811 | -7/Data Miner | Accompanied by 1 ally 8811 | -7/Data Miner | Discovered new exit (range 6) 8841 | -7/Data Miner | Met Data Miner 8887 | -7/Data Miner | Learned location of Section 7 (-2) 8887 | -7/Data Miner | Acquired the access code to Warlord's prototype stash 8912 | -7/Data Miner | Received God Mode back door access code from Data Miner 8956 | -7/Data Miner | Identified exit to Proximity Caves 8957 | -7/Data Miner | Entered Proximity Caves 8957 | -6/Proximity Caves | Accompanied by 1 ally 9363 | -6/Proximity Caves | Escorted by Enhanced Grunt 9619 | -6/Proximity Caves | Discovered exit to Factory (range 5) 9739 | -6/Proximity Caves | Entered Factory 9739 | -6/Factory | Accompanied by 1 ally 9739 | -6/Factory | Evolved 2 slots: Utility x2 9741 | -6/Factory | Loaded intel: 76 trap records 9998 | -6/Factory | Build established: Scavenger-Tank 10169 | -6/Factory | Incoming investigation squad redirected 10283 | -6/Factory | Discovered new exit (range 14) 10328 | -6/Factory | Identified exit to Lower Caves 10409 | -6/Factory | Build established: Bothacker-Tank 10513 | -6/Factory | Entered Lower Caves 10513 | -6/Lower Caves | Accompanied by 1 ally 10532 | -6/Lower Caves | Encountered a Warlord checkpoint 10701 | -6/Lower Caves | Learned location of 2 exits from Factory 11205 | -6/Lower Caves | Learned Factory security intel 11260 | -6/Lower Caves | Discovered new exit (range 8) 11269 | -6/Lower Caves | Identified exit to Lower Caves 11272 | -6/Lower Caves | Entered another Lower Caves area 11272 | -6/Lower Caves | Accompanied by 1 ally 11301 | -6/Lower Caves | Found Alien Artifact 11301 | -6/Lower Caves | Identified Core Expander 11301 | -6/Lower Caves | Installed Core Expander, added new Weapon slot 11426 | -6/Lower Caves | Encountered a Warlord checkpoint 11544 | -6/Lower Caves | Discovered new exit (range 10) 11585 | -6/Lower Caves | Identified exit to Factory 11586 | -6/Lower Caves | Entered Factory 11586 | -5/Factory | Accompanied by 1 ally 11586 | -5/Factory | Evolved 2 slots: Power x1, Utility x1 11587 | -5/Factory | Identified exit to Extension 11588 | -5/Factory | Identified exit to Factory 11816 | -5/Factory | Discovered new exit (range 14) 11861 | -5/Factory | Identified exit to Upper Caves 12037 | -5/Factory | Incoming investigation squad redirected 12283 | -5/Factory | Repaired Imp. Propulsion Shielding 12392 | -5/Factory | Entered Upper Caves 12392 | -5/Upper Caves | Accompanied by 2 allies 13030 | -5/Upper Caves | Build established: Bothacker-Skirmisher 13186 | -5/Upper Caves | Discovered new exit (range 12) 13366 | -5/Upper Caves | Build established: Scavenger-Mutant 13513 | -5/Upper Caves | Identified exit to Upper Caves 13519 | -5/Upper Caves | Entered another Upper Caves area 13519 | -5/Upper Caves | Accompanied by 3 allies 13519 | -5/Upper Caves | Discovered exit to Factory (range 15) 13568 | -5/Upper Caves | Entered Factory 13568 | -4/Factory | Accompanied by 3 allies 13568 | -4/Factory | Evolved 2 slots: Utility x2 13806 | -4/Factory | Build established: Scavenger-Tank 14049 | -4/Factory | Lost 3 parts (1p2u) 14092 | -4/Factory | Garrison activated, responded to threat 14123 | -4/Factory | Spotted B-86 Titan 14148 | -4/Factory | Incoming assault squad redirected 14195 | -4/Factory | Lost 11 parts (2p1n3u5w) 14231 | -4/Factory | Allies destroyed B-86 Titan 14260 | -4/Factory | Discovered new exit (range 12) 14280 | -4/Factory | Lost 3 parts (2n1u) 14348 | -4/Factory | Identified exit to Research 14485 | -4/Factory | Build established: Hauler-Mutant 14567 | -4/Factory | Entered Research 14567 | -3/Research | Accompanied by 1 ally 14567 | -3/Research | Evolved 2 slots: Utility x2 14865 | -3/Research | Build established: Scavenger-Mutant 15134 | -3/Research | Spotted B-86 Titan 15143 | -3/Research | Garrison activated, responded to threat 15193 | -3/Research | Destroyed B-86 Titan 15205 | -3/Research | Core integrity fell below 50% 15210 | -3/Research | Core integrity fell below 20% 15212 | -3/Research | Core destroyed Last Messages --------------- 15191_ Dropped Matter Compressor. 15192_ Extracted 140 matter. 15192_ Acquired Matter Compressor. 15193_ B-86 Titan suffers critical hit. 15193_ B-86 Titan destroyed. 15199_ R-10 Processor collects Terrain Scan Processor. Player 2: "What are the chances they'd hit my Sml. Storage Unit? Okay, I admit probably not all THAT bad..." 15201_ K-01 Serf destroyed. 15201_ U-05 Engineer lays Concrete. 15202_ R-10 Processor collects Lgt. Ion Engine. 15202_ U-05 Engineer lays Concrete. 15205_ G-67 Veteran suffers critical hit. 15205_ G-67 Veteran destroyed. 15205_ R-10 Processor collects Flexi-carbon Leg. 15205_ U-05 Engineer lays Concrete. Player 2: "Gimme Myomer Leg." 15207_ U-05 Engineer lays Concrete. 15208_ HV Slug penetrates Player 2. 15210_ U-05 Engineer lays Concrete. Map ----- +----------------------------------------------------+ | ?????????????????????????????????????????????????? | | ?????????????????????????????????????????????????? | | ?????????????????????????????????????????????????? | | ?????????????????????????????????????????????????? | | ?????????????????????????????????????????????????? | | ?????????????????????????????????????????????????? | | ?????????????????????????????????????????????????? | | ?????????????????????????????????????????????????? | | ?????????????????????????????????????????????????? | | ?????????????????????????????????????????????????? | | ??????????????????????? ?????????????????????? | | ????????????????????? ???????????????????? | | ???????????????????? % ?????????????????? | | ???????????????????? ???????#########?? | | ???????????????????? %= #???????# #?? | | ????????????????????? Y%%[ #???????# #?? | | ????????????????????? gg! #???????# #?? | | ?????????????????????? guY ????????# #?? | | ?????????????????????? ?######## #?? | | ??????????????????????? ! ??# # #?# | | ??????????????????????? !% ???# # #?# | | ???????????????????????#u@= ###?# # #?# | | ???????????????????????#R=[* T#?# # #?# | | ???????????????????????#%=%*""??# # ### | | ???????????????????????#=|! #???# # # # | | ???????????????????????#%@!*#???# ######+#### | | ???????????????????????#* !%##### ### | | ???????????????????????# = % + ### | | ???????###########?????# ######## # # | | ???????# ! ??#### # #????# / # # | | ???????# = + ###????# ### | | ???????# ?# #??????# # # | | ???????# [# #############+### | | ???????# # | | ???????# + | | ???????# # * | | ???????# [ # | | ???????# ?####+######+###########+###### | | ???????# ??? ?? ??? ? ???? | | ???????# ???# !# ?# ?? | | ???????# ???# ! # ## | | ???????##########????# # """ ## """ """ | | ?????????????????????# # """ ## """ """ | | ?????????????????????# # """ ## """ """ | | ?????????????????????# ! # ## """ """ | | ?????????????????????# # ## ???" ""?? | | ?????????????????????# # #????? ??? | | ?????????????????????# ##?????###????? ???? | | ?????????????????????# #?????????????? ???? | | ?????????????????????# #?????????????? ???? | +----------------------------------------------------+ Best States ------------- Heat Dissipation 101 Energy Generation 37 Energy Capacity 360 Matter Stores 300 Matter Capacity 400 Sight Range 18 Robot Scan Range 30 Terrain Scan Density 10 Jamming Range 8 Armor Coverage 825 Resistance: KI 20 Resistance: TH 10 Propulsion Shielding 66 Evasion (%) 40 Launcher Accuracy 40 Target Analysis 6 Core Analysis 8 Armor Integrity Analysis 50 Particle Charging 20 Offensive Hacking 10 Defensive Hacking 11 Relay Coupler Types 38 Relay Coupler Value 2 Item Schematics ----------------- Exp. Sensor Array | -8/Materials | Scanalyzed Imp. Signal Interpreter | -8/Materials | Scanalyzed EM Pulse Cannon | -8/Materials | Scanalyzed Combat Drone Bay | -7/Data Miner | Free Lgt. Regenerative Plating | -7/Data Miner | Free Triangulator | -7/Data Miner | Free Exp. Terrain Scan Processor | -7/Data Miner | Free Exp. Transmission Jammer | -7/Data Miner | Free Cloaking Device | -7/Data Miner | Free Mni. Smartbomb Launcher | -7/Data Miner | Free Myomer Leg | -5/Factory | Scanalyzed Robot Schematics ------------------ S-27 Virus | -7/Data Miner | Free G-50 Soldier | -7/Data Miner | Free G-67 Veteran | -7/Data Miner | Free X-72 Disruptor | -7/Data Miner | Free H-66 Slayer | -7/Data Miner | Free P-70 Sage | -7/Data Miner | Free I-36 Angel | -7/Data Miner | Free Fabricated ------------ Nothing Alien Tech Used ----------------- Core Expander Achievements -------------- None Challenges ------------ None Player 2 | -11 -10 -10 -10 -9 -8 -8 -8 -8 -7 -7 -7 -7 -6 -6 -6 -6 -5 -5 -5 -4 -3 ---------- Run | Scr Mat Min Exi Min Mat Gar Mat Gar Fac Low Low Dat Pro Fac Low Low Fac Upp Upp Fac Res Slots Evolved 14 | . . . . 4 . . . 2 . . . . 2 . . 2 . . 2 2 . Power 1 | . . . . 1 . . . . . . . . . . . . . . . . . Propulsion 3 | . . . . 1 . . . . . . . . 1 . . . . . . 1 . Utility 8 | . . . . 1 . . . 2 . . . . 1 . . 2 . . 2 . . Weapon 2 | . . . . 1 . . . . . . . . . . . . . . . 1 . Parts Attached 117 | . 11 . . . 27 3 5 . 10 2 1 . . 6 . 1 13 1 . 22 15 Parts Lost 57 | . . . . . 2 1 1 . . . . . 1 . . . 5 . . 22 25 Damage Taken 9226 | . 119 . . . 523 377 155 55 118 55 23 . 65 . . 94 1514 65 . 2760 3303 Core 1651 | . . . . . 33 38 . 13 . 13 7 . . . . . 74 . . 183 1290 Player 2/Cogmind (%) 71 | . . . . . 45 66 . 100 . 27 22 . . . . . 100 . . 36 98 Absorbed by Shields 305 | . . . . . . . . . . . . . . . . . . . . . 305 Damage Inflicted 12494 | . 365 . . . 1288 367 1405 146 1337 381 369 . 114 183 78 173 1298 342 . 3497 1151 Player 2/Cogmind (%) 49 | . 58 . . . 57 38 56 20 54 57 34 . 8 51 100 46 64 36 . 52 53 Combat Hostiles Destroyed 77 | . 6 . . . 8 4 8 2 11 3 2 . 2 1 . 1 9 2 . 14 4 Player 2/Cogmind (%) 45 | . 60 . . . 44 44 32 28 50 75 28 . 25 50 . 33 64 28 . 58 44 Game ------ Seed AlphaSmallFalx Manual? 0 Play Time 01:41:47 Cumulative 674.1 hours Start 2020.10.03 @ 12:38:17 End 2020.10.03 @ 15:16:57 Sessions 6 Manual Loads 0 Difficulty Rogue Special Mode AFD2020/Player2 Game No. 477 Rogue 473 Adventurer 4 Explorer 0 Win Type - Total 72 Types 57/6/3/2/2/0/0/1/1 Lore% 94 Gallery% 96 Achievement% 96 Wizard Run 0 Options --------- ASCII 0 Keyboard 0 Movement Vi Keybinds 0 Fullscreen 0 Font 16/Terminus Map View 76x50 Tactical HUD 1 Map Filters NONE Filters NONE Steam 1 RUN: d249ef22-652a-483d-bc5d-1d3366dccf70